fUST/lending_fUST_20240727
["ID","MTS","AMOUNT","RATE_DAILY","PERIOD"]
[333281687,1722018644600,-500.0,0.00013698,2]
[333281688,1722018644609,-500.0,0.00013698,2]
[333281689,1722018644619,-500.0,0.00013698,2]
[333281690,1722018644628,-501.55323771,0.00013698,2]
[333281691,1722018644637,-500.0,0.00013698,2]
[333281692,1722018644648,-500.0,0.00013698,2]
[333281693,1722018644657,-767.58,0.00013698,2]
[333281694,1722018644668,-151.0,0.00013698,2]
[333281695,1722018644678,-500.0,0.00013698,2]
[333281696,1722018644688,-500.0,0.00013698,2]
[333281697,1722018644697,-500.0,0.00013698,2]
[333281698,1722018644706,-500.0,0.00013698,2]
[333281699,1722018644716,-500.0,0.00013698,2]
[333281700,1722018644725,-500.0,0.00013698,2]
[333281701,1722018644734,-151.0,0.00013698,2]
[333281702,1722018644745,-500.0,0.00013698,2]
[333281703,1722018644755,-500.0,0.00013698,2]
[333281704,1722018644765,-726.29,0.00013698,2]
[333281705,1722018644774,-500.0,0.00013698,2]
[333281706,1722018644783,-500.0,0.00013698,2]
[333281707,1722018644793,-151.0,0.00013698,2]
[333281708,1722018644802,-868.81,0.00013698,2]
[333281709,1722018644813,-500.0,0.00013698,2]
[333281710,1722018644822,-618.32,0.00013698,2]
[333281711,1722018644831,-280.43116125,0.00013698,2]
[333281712,1722018644841,-500.0,0.00013698,2]
[333281713,1722018644852,-151.0,0.00013698,2]
[333281714,1722018644862,-500.0,0.00013698,2]
[333281715,1722018644872,-1921.95,0.00013698,2]
[333281716,1722018644881,-500.0,0.00013698,2]
[333281717,1722018644891,-500.0,0.00013698,2]
[333281718,1722018644900,-500.0,0.00013698,2]
[333281719,1722018644909,-334.320932,0.00013698,2]
[333281720,1722018644919,-5389.54,0.00013698,2]
[333281721,1722018644928,-500.0,0.00013698,2]
[333281722,1722018644938,-500.0,0.00013698,2]
[333281723,1722018644948,-500.0,0.00013698,2]
[333281724,1722018644957,-334.320932,0.00013698,2]
[333281725,1722018644967,-500.0,0.00013698,2]
[333281726,1722018644976,-500.0,0.00013698,2]
[333281727,1722018644986,-500.0,0.00013698,2]
[333281728,1722018644995,-530.578166,0.00013698,2]
[333281729,1722018645004,-500.0,0.00013698,2]
[333281730,1722018645014,-2174.84,0.00013698,2]
[333281731,1722018645023,-500.0,0.00013698,2]
[333281732,1722018645032,-530.578166,0.00013698,2]
[333281733,1722018645042,-960.188475,0.00013698,2]
[333281734,1722018645051,-151.0,0.00013698,2]
[333281735,1722018645061,-828.72,0.00013698,2]
[333281736,1722018645071,-246.37709923,0.00013698,2]
[333281737,1722018645081,-960.188475,0.00013698,2]
[333281738,1722018645090,-500.0,0.00013698,2]
[333281739,1722018645099,-1041.76,0.00013698,2]
[333281740,1722018645109,-1205.1,0.00013698,2]
[333281741,1722018645118,-500.0,0.00013698,2]
[333281742,1722018645128,-1646.68,0.00013698,2]
[333281743,1722018645137,-500.0,0.00013698,2]
[333281744,1722018645146,-500.0,0.00013698,2]
[333281745,1722018645156,-1583.11,0.00013698,2]
[333281746,1722018645169,-500.0,0.00013698,2]
[333281747,1722018645178,-721.209202,0.00013698,2]
[333281748,1722018645187,-643.23,0.00013698,2]
[333281749,1722018645197,-500.0,0.00013698,2]
[333281750,1722018645207,-721.209202,0.00013698,2]
[333281751,1722018645217,-500.0,0.00013698,2]
[333281752,1722018645227,-502.27364865,0.00013698,2]
[333281753,1722018645237,-500.0,0.00013698,2]
[333281754,1722018645247,-684.26,0.00013698,2]
[333281755,1722018645257,-500.0,0.00013698,2]
[333281756,1722018645267,-999.35,0.00013698,2]
[333281757,1722018645276,-151.0,0.00013698,2]
[333281758,1722018645285,-4040.77,0.00013698,2]
[333281759,1722018645294,-605.8,0.00013698,2]
[333281760,1722018645304,-500.0,0.00013698,2]
[333281761,1722018645314,-547.12,0.00013698,2]
[333281762,1722018645323,-500.0,0.00013698,2]
[333281763,1722018645333,-500.0,0.00013698,2]
[333281764,1722018645343,-500.0,0.00013698,2]
[333281765,1722018645352,-500.0,0.00013698,2]
[333281766,1722018645361,-318.543474,0.00013698,2]
[333281767,1722018645371,-500.0,0.00013698,2]
[333281768,1722018645380,-500.0,0.00013698,2]
[333281769,1722018645390,-318.543474,0.00013698,2]
[333281770,1722018645399,-500.0,0.00013698,2]
[333281771,1722018645408,-503.19222684,0.00013698,2]
[333281772,1722018645418,-399.84210935,0.00013698,2]
[333281773,1722018645428,-151.0,0.00013698,2]
[333281774,1722018645440,-151.0,0.00013698,2]
[333281775,1722018645450,-500.0,0.00013698,2]
[333281776,1722018645461,-500.0,0.00013698,2]
[333281777,1722018645471,-671.03,0.00013698,2]
[333281778,1722018645480,-151.0,0.00013698,2]
[333281779,1722018645490,-697.8,0.00013698,2]
[333281780,1722018645499,-500.0,0.00013698,2]
[333281781,1722018645508,-259.32795271,0.00013698,2]
[333281782,1722018645518,-515.31335447,0.00013698,2]
[333281783,1722018645529,-500.0,0.00013698,2]
[333281784,1722018645539,-500.0,0.00013698,2]
[333281785,1722018645548,-500.0,0.00013698,2]
[333281786,1722018645559,-3311.3,0.00013698,2]
[333281787,1722018645569,-500.0,0.00013698,2]
[333281788,1722018645578,-500.0,0.00013698,2]
[333281789,1722018645587,-911.04,0.00013698,2]
[333281790,1722018645597,-500.0,0.00013698,2]
[333281791,1722018645606,-500.0,0.00013698,2]
[333281792,1722018645616,-500.0,0.00013698,2]
[333281793,1722018645626,-500.0,0.00013698,2]
[333281794,1722018645636,-504.3622422,0.00013698,2]
[333281795,1722018645646,-1661.96,0.00013698,2]
[333281796,1722018645656,-500.0,0.00013698,2]
[333281797,1722018645667,-383.56745157,0.00013698,2]
[333281798,1722018645677,-786.67,0.00013698,2]
[333281799,1722018645688,-878.25,0.00013698,2]
[333281800,1722018645698,-500.0,0.00013698,2]
[333281801,1722018645708,-500.0,0.00013698,2]
[333281802,1722018645719,-500.0,0.00013698,2]
[333281803,1722018645729,-509.40211668,0.00013698,2]
[333281804,1722018645739,-500.58453657,0.00013698,2]
[333281805,1722018645749,-500.366841,0.00013698,2]
[333281806,1722018645758,-500.0,0.00013698,2]
[333281807,1722018645769,-520.52316604,0.00013698,2]
[333281808,1722018645779,-500.0,0.00013698,2]
[333281809,1722018645788,-500.0,0.00013698,2]
[333281810,1722018645797,-868.55,0.00013698,2]
[333281811,1722018645807,-151.0,0.00013698,2]
[333281812,1722018645817,-500.0,0.00013698,2]
[333281813,1722018645828,-500.0,0.00013698,2]
[333281814,1722018645837,-500.0,0.00013698,2]
[333281815,1722018645847,-500.0,0.00013698,2]
[333281816,1722018645859,-151.0,0.00013698,2]
[333281817,1722018645870,-500.0,0.00013698,2]
[333281818,1722018645879,-504.37885215,0.00013698,2]
[333281819,1722018645889,-525.81,0.00013698,2]
[333281820,1722018645899,-500.0,0.00013698,2]
[333281821,1722018645909,-500.0,0.00013698,2]
[333281822,1722018645919,-503.81854357,0.00013698,2]
[333281824,1722018646062,-500.0,0.00013698,2]
[333281825,1722018646072,-780.08,0.00013698,2]
[333281826,1722018646082,-151.0,0.00013698,2]
[333281827,1722018646091,-1045.39,0.00013698,2]
[333281828,1722018646101,-151.0,0.00013698,2]
[333281829,1722018646110,-578.14,0.00013698,2]
[333281830,1722018646120,-434.304041,0.00013698,2]
[333281831,1722018646130,-503.61714879,0.00013698,2]
[333281832,1722018646139,-500.0,0.00013698,2]
[333281834,1722018646150,-151.0,0.00013698,2]
[333281836,1722018646159,-500.0,0.00013698,2]
[333281837,1722018646172,-500.0,0.00013698,2]
[333281839,1722018646182,-434.304041,0.00013698,2]
[333281842,1722018646191,-500.0,0.00013698,2]
[333281843,1722018646202,-500.0,0.00013698,2]
[333281846,1722018646214,-600.63,0.00013698,2]
[333281848,1722018646223,-561.74,0.00013698,2]
[333281850,1722018646233,-500.0,0.00013698,2]
[333281851,1722018646245,-500.0,0.00013698,2]
[333281853,1722018646256,-151.0,0.00013698,2]
[333281856,1722018646267,-500.0,0.00013698,2]
[333281858,1722018646276,-500.0,0.00013698,2]
[333281860,1722018646286,-519.19066154,0.00013698,2]
[333281862,1722018646296,-321.0073544,0.00013698,2]
[333281864,1722018646307,-500.0,0.00013698,2]
[333281866,1722018646316,-500.0,0.00013698,2]
[333281868,1722018646327,-500.0,0.00013698,2]
[333281870,1722018646338,-500.0,0.00013698,2]
[333281872,1722018646348,-500.0,0.00013698,2]
[333281874,1722018646359,-575.79482574,0.00013698,2]
[333281877,1722018646369,-500.0,0.00013698,2]
[333281879,1722018646378,-500.0,0.00013698,2]
[333281881,1722018646388,-500.0,0.00013698,2]
[333281883,1722018646398,-295.54114744,0.00013698,2]
[333281885,1722018646407,-500.0,0.00013698,2]
[333281886,1722018646417,-500.0,0.00013698,2]
[333281887,1722018646428,-500.0,0.00013698,2]
[333281888,1722018646438,-500.0,0.00013698,2]
[333281889,1722018646448,-500.0,0.00013698,2]
[333281890,1722018646457,-500.0,0.00013698,2]
[333281891,1722018646468,-500.0,0.00013698,2]
[333281892,1722018646478,-157.14943285,0.00013698,2]
[333281893,1722018646487,-500.0,0.00013698,2]
[333281894,1722018646497,-500.0,0.00013698,2]
[333281895,1722018646507,-500.0,0.00013698,2]
[333281896,1722018646517,-500.0,0.00013698,2]
[333281897,1722018646527,-500.0,0.00013698,2]
[333281898,1722018646537,-500.0,0.00013698,2]
[333281899,1722018646547,-485.68009819,0.00013698,2]
[333281900,1722018646557,-500.0,0.00013698,2]
[333281901,1722018646567,-500.0,0.00013698,2]
[333281902,1722018646577,-500.0,0.00013698,2]
[333281903,1722018646587,-500.0,0.00013698,2]
[333281904,1722018646596,-500.0,0.00013698,2]
[333281905,1722018646606,-500.0,0.00013698,2]
[333281906,1722018646616,-500.0,0.00013698,2]
[333281907,1722018646626,-500.0,0.00013698,2]
[333281908,1722018646636,-500.0,0.00013698,2]
[333281909,1722018646645,-300.0,0.00013698,2]
[333281910,1722018646654,-500.0,0.00013698,2]
[333281911,1722018646665,-500.0,0.00013698,2]
[333281912,1722018646675,-500.0,0.00013698,2]
[333281913,1722018646686,-500.0,0.00013698,2]
[333281914,1722018646697,-500.0,0.00013698,2]
[333281915,1722018646708,-500.0,0.00013698,2]
[333281918,1722018646718,-500.0,0.00013698,2]
[333281921,1722018646728,-634.59904297,0.00013698,2]
[333281924,1722018646738,-500.0,0.00013698,2]
[333281926,1722018646749,-502.81326667,0.00013698,2]
[333281927,1722018646760,-500.0,0.00013698,2]
[333281928,1722018646771,-500.0,0.00013698,2]
[333281929,1722018646781,-500.0,0.00013698,2]
[333281930,1722018646791,-620.22,0.00013698,2]
[333281931,1722018646800,-500.0,0.00013698,2]
[333281932,1722018646811,-1011.474559,0.00013698,2]
[333281934,1722018646820,-279.67259686,0.00013698,2]
[333281935,1722018646830,-500.0,0.00013698,2]
[333281936,1722018646839,-635.62,0.00013698,2]
[333281937,1722018646849,-505.83,0.00013698,2]
[333281938,1722018646858,-1187.44,0.00013698,2]
[333281939,1722018646868,-1011.474559,0.00013698,2]
[333281940,1722018646878,-1017.398271,0.00013699,2]
[333281941,1722018646889,-467.8511654,0.00013699,2]
[333281942,1722018646899,-397.756453,0.00013699,2]
[333281943,1722018646909,-397.756453,0.00013699,2]
[333281944,1722018646919,-3000.0,0.00013699,2]
[333281945,1722018646931,-150.112233,0.000137,2]
[333281946,1722018646941,-150.112233,0.000138,2]
[333281947,1722018646951,-150.112233,0.000138,2]
[333281948,1722018646961,-150.112233,0.000139,2]
[333281949,1722018646971,-5969.85221184,0.000139,2]
[333281950,1722018646982,-4987.90562009,0.000139,2]
[333281951,1722018646992,-151.0,0.00013952,2]
[333281952,1722018647003,-268.642095,0.00013952,2]
[333281953,1722018647013,-268.642095,0.00013952,2]
[333281954,1722018647023,-151.0,0.00013952,2]
[333281955,1722018647032,-151.0,0.00013952,2]
[333281956,1722018647042,-151.0,0.00013952,2]
[333281957,1722018647052,-500.0,0.00013952,2]
[333281958,1722018647064,-620.6,0.00013952,2]
[333281959,1722018647074,-2286.05,0.00013952,2]
[333281960,1722018647083,-153.0,0.00013959,2]
[333281961,1722018647093,-153.0,0.00013959,2]
[333281962,1722018647103,-153.0,0.00013959,2]
[333281963,1722018647112,-153.0,0.00013959,2]
[333281964,1722018647122,-153.0,0.00013959,2]
[333281965,1722018647132,-153.0,0.00013959,2]
[333281966,1722018647142,-153.0,0.00013959,2]
[333281967,1722018647153,-153.0,0.00013959,2]
[333281968,1722018647164,-153.0,0.00013959,2]
[333281969,1722018647176,-153.0,0.00013959,2]
[333281970,1722018647186,-153.0,0.00013959,2]
[333281971,1722018647197,-153.0,0.00013959,2]
[333281972,1722018647207,-153.0,0.00013959,2]
[333281973,1722018647217,-153.0,0.00013959,2]
[333281974,1722018647226,-153.0,0.00013959,2]
[333281975,1722018647237,-153.0,0.00013959,2]
[333281976,1722018647247,-153.0,0.00013959,2]
[333281977,1722018647259,-153.0,0.00013959,2]
[333281978,1722018647268,-153.0,0.00013959,2]
[333281979,1722018647278,-153.0,0.00013959,2]
[333281980,1722018647289,-153.0,0.00013959,2]
[333281981,1722018647298,-153.0,0.00013959,2]
[333281982,1722018647310,-153.0,0.00013959,2]
[333281983,1722018647319,-153.0,0.00013959,2]
[333281984,1722018647329,-153.0,0.00013959,2]
[333281985,1722018647340,-153.0,0.00013959,2]
[333281986,1722018647350,-153.0,0.00013959,2]
[333281987,1722018647360,-153.0,0.00013959,2]
[333281988,1722018647371,-153.0,0.00013959,2]
[333281989,1722018647381,-153.0,0.00013959,2]
[333281990,1722018647391,-153.0,0.00013959,2]
[333281991,1722018647401,-153.0,0.00013959,2]
[333281992,1722018647411,-153.0,0.00013959,2]
[333281993,1722018647421,-151.0,0.00013962,2]
[333281994,1722018647431,-151.0,0.00013962,2]
[333281995,1722018647441,-500.0,0.00013971,2]
[333281996,1722018647451,-500.0,0.00013971,2]
[333281997,1722018647461,-500.0,0.00013971,2]
[333281998,1722018647471,-2286.05,0.00013971,2]
[333281999,1722018647481,-2286.05,0.00013971,2]
[333282000,1722018647491,-2286.05,0.00013971,2]
[333282001,1722018647500,-2286.05,0.00013971,2]
[333282002,1722018647510,-500.0,0.00013972,2]
[333282003,1722018647519,-500.0,0.00013972,2]
[333282004,1722018647529,-500.0,0.00013972,2]
[333282005,1722018647538,-500.0,0.00013972,2]
[333282006,1722018647547,-500.0,0.00013972,2]
[333282007,1722018647559,-500.0,0.00013972,2]
[333282008,1722018647568,-500.0,0.00013972,2]
[333282009,1722018647578,-500.0,0.00013972,2]
[333282010,1722018647588,-500.0,0.00013972,2]
[333282011,1722018647599,-286.84144673,0.00013972,2]
[333282012,1722018647611,-500.0,0.00013972,2]
[333282013,1722018647622,-500.0,0.00013972,2]
[333282014,1722018647634,-500.0,0.00013972,2]
[333282015,1722018647644,-500.0,0.00013972,2]
[333282016,1722018647655,-500.0,0.00013972,2]
[333282017,1722018647666,-500.0,0.00013972,2]
[333282018,1722018647676,-500.0,0.00013972,2]
[333282019,1722018647686,-500.0,0.00013972,2]
[333282020,1722018647696,-500.0,0.00013972,2]
[333282021,1722018647706,-500.0,0.00013972,2]
[333282022,1722018647717,-500.0,0.00013972,2]
[333282023,1722018647727,-513.61392818,0.00013972,2]
[333282024,1722018647738,-500.0,0.00013972,2]
[333282025,1722018647750,-500.0,0.00013972,2]
[333282026,1722018647760,-500.0,0.00013972,2]
[333282027,1722018647769,-453.02021715,0.00013972,2]
[333282028,1722018647779,-500.0,0.00013972,2]
[333282029,1722018647789,-500.0,0.00013972,2]
[333282030,1722018647800,-500.0,0.00013972,2]
[333282031,1722018647810,-500.0,0.00013972,2]
[333282032,1722018647820,-500.0,0.00013972,2]
[333282033,1722018647829,-500.0,0.00013972,2]
[333282034,1722018647840,-804.35,0.00013972,2]
[333282035,1722018647851,-500.0,0.00013972,2]
[333282036,1722018647861,-272.21608782,0.00013972,2]
[333282037,1722018647870,-507.52051607,0.00013972,2]
[333282038,1722018647880,-500.0,0.00013972,2]
[333282039,1722018647891,-500.0,0.00013972,2]
[333282040,1722018647901,-517.40040572,0.00013972,2]
[333282041,1722018647911,-500.0,0.00013972,2]
[333282042,1722018647921,-519.2974088,0.00013972,2]
[333282043,1722018647931,-398.45510743,0.00013972,2]
[333282044,1722018647942,-500.0,0.00013972,2]
[333282045,1722018647952,-500.0,0.00013972,2]
[333282046,1722018647965,-384.92364276,0.00013972,2]
[333282047,1722018647975,-500.0,0.00013972,2]
[333282048,1722018647985,-500.0,0.00013972,2]
[333282049,1722018647994,-503.44801419,0.00013972,2]
[333282050,1722018648004,-223.1229855,0.00013972,2]
[333282051,1722018648014,-500.0,0.00013972,2]
[333282052,1722018648025,-500.0,0.00013972,2]
[333282053,1722018648035,-504.00163031,0.00013972,2]
[333282054,1722018648044,-731.71,0.00013972,2]
[333282055,1722018648054,-500.0,0.00013972,2]
[333282056,1722018648064,-500.0,0.00013972,2]
[333282057,1722018648074,-500.0,0.00013972,2]
[333282058,1722018648084,-151.409875,0.00013972,2]
[333282059,1722018648093,-500.0,0.00013972,2]
[333282060,1722018648103,-500.0,0.00013972,2]
[333282061,1722018648113,-500.0,0.00013972,2]
[333282062,1722018648123,-500.0,0.00013972,2]
[333282063,1722018648133,-500.0,0.00013972,2]
[333282064,1722018648143,-268.642095,0.00013972,2]
[333282065,1722018648152,-500.0,0.00013972,2]
[333282066,1722018648164,-500.0,0.00013972,2]
[333282067,1722018648175,-500.0,0.00013972,2]
[333282068,1722018648185,-268.642095,0.00013972,2]
[333282069,1722018648195,-500.0,0.00013972,2]
[333282070,1722018648205,-500.0,0.00013972,2]
[333282071,1722018648217,-500.0,0.00013972,2]
[333282072,1722018648230,-500.0,0.00013972,2]
[333282073,1722018648241,-500.0,0.00013972,2]
[333282074,1722018648251,-370.27688222,0.00013972,2]
[333282075,1722018648262,-500.0,0.00013972,2]
[333282076,1722018648274,-500.0,0.00013972,2]
[333282077,1722018648285,-500.0,0.00013972,2]
[333282078,1722018648295,-221.46648,0.00013972,2]
[333282079,1722018648305,-622.85,0.00013972,2]
[333282080,1722018648316,-600.75,0.00013972,2]
[333282081,1722018648327,-500.0,0.00013972,2]
[333282082,1722018648337,-500.0,0.00013972,2]
[333282083,1722018648347,-680.5,0.00013972,2]
[333282084,1722018648356,-505.38,0.00013972,2]
[333282085,1722018648367,-833.43,0.00013972,2]
[333282086,1722018648377,-151.0,0.00013972,2]
[333282087,1722018648387,-500.0,0.00013972,2]
[333282088,1722018648397,-151.0,0.00013972,2]
[333282089,1722018648406,-500.0,0.00013972,2]
[333282090,1722018648416,-500.0,0.00013972,2]
[333282091,1722018648425,-500.0,0.00013972,2]
[333282092,1722018648435,-500.0,0.00013972,2]
[333282093,1722018648444,-500.0,0.00013972,2]
[333282094,1722018648453,-500.0,0.00013972,2]
[333282095,1722018648463,-500.0,0.00013972,2]
[333282096,1722018648473,-500.0,0.00013972,2]
[333282097,1722018648483,-500.0,0.00013972,2]
[333282098,1722018648503,-500.0,0.00013972,2]
[333282099,1722018648516,-500.0,0.00013972,2]
[333282100,1722018648526,-500.0,0.00013972,2]
[333282101,1722018648536,-784.33,0.00013972,2]
[333282102,1722018648545,-433.51979215,0.00013972,2]
[333282103,1722018648556,-533.03,0.00013972,2]
[333282104,1722018648567,-511.54112398,0.00013972,2]
[333282105,1722018648651,-151.0,0.00013972,2]
[333282106,1722018648663,-500.0,0.00013972,2]
[333282107,1722018648672,-534.09194232,0.00013972,2]
[333282108,1722018648682,-500.0,0.00013972,2]
[333282109,1722018648692,-507.21680693,0.00013972,2]
[333282110,1722018648701,-500.0,0.00013972,2]
[333282111,1722018648711,-500.0,0.00013972,2]
[333282112,1722018648721,-500.0,0.00013972,2]
[333282113,1722018648730,-500.0,0.00013972,2]
[333282114,1722018648741,-948.14,0.00013972,2]
[333282115,1722018648752,-151.0,0.00013972,2]
[333282116,1722018648762,-203.79306,0.00013972,2]
[333282117,1722018648771,-740.15,0.00013972,2]
[333282118,1722018648781,-595.72,0.00013972,2]
[333282119,1722018648792,-515.13,0.00013972,2]
[333282120,1722018648802,-500.0,0.00013972,2]
[333282121,1722018648812,-500.0,0.00013972,2]
[333282122,1722018648821,-500.0,0.00013972,2]
[333282123,1722018648831,-1393.67,0.00013972,2]
[333282124,1722018648840,-500.0,0.00013972,2]
[333282125,1722018648850,-817.612571,0.00013972,2]
[333282126,1722018648859,-500.0,0.00013972,2]
[333282127,1722018648869,-817.612571,0.00013972,2]
[333282128,1722018648878,-500.0,0.00013972,2]
[333282129,1722018648888,-510.83796348,0.00013972,2]
[333282130,1722018648897,-500.0,0.00013972,2]
[333282131,1722018648907,-500.0,0.00013972,2]
[333282132,1722018648916,-500.0,0.00013972,2]
[333282133,1722018648925,-511.54,0.00013972,2]
[333282134,1722018648935,-500.0,0.00013972,2]
[333282135,1722018648944,-513.00394085,0.00013972,2]
[333282136,1722018648953,-500.0,0.00013972,2]
[333282137,1722018648963,-500.0,0.00013972,2]
[333282138,1722018648972,-500.0,0.00013972,2]
[333282139,1722018648982,-500.0,0.00013972,2]
[333282140,1722018648992,-500.0,0.00013972,2]
[333282141,1722018649002,-500.0,0.00013972,2]
[333282142,1722018649012,-500.0,0.00013972,2]
[333282143,1722018649021,-500.0,0.00013972,2]
[333282144,1722018649032,-500.0,0.00013972,2]
[333282145,1722018649043,-500.0,0.00013972,2]
[333282146,1722018649053,-500.0,0.00013972,2]
[333282147,1722018649065,-500.0,0.00013972,2]
[333282148,1722018649074,-500.0,0.00013972,2]
[333282149,1722018649084,-506.86964681,0.00013972,2]
[333282150,1722018649094,-500.0,0.00013972,2]
[333282151,1722018649104,-500.0,0.00013972,2]
[333282152,1722018649115,-500.0,0.00013972,2]
[333282153,1722018649126,-500.0,0.00013972,2]
[333282154,1722018649138,-500.0,0.00013972,2]
[333282155,1722018649147,-512.54286972,0.00013972,2]
[333282156,1722018649159,-500.0,0.00013972,2]
[333282157,1722018649173,-626.3132271,0.00013972,2]
[333282158,1722018649182,-500.0,0.00013972,2]
[333282159,1722018649192,-511.62744072,0.00013972,2]
[333282160,1722018649203,-500.0,0.00013972,2]
[333282161,1722018649213,-500.0,0.00013972,2]
[333282162,1722018649223,-500.0,0.00013972,2]
[333282163,1722018649233,-500.0,0.00013972,2]
[333282164,1722018649243,-500.0,0.00013972,2]
[333282165,1722018649254,-500.0,0.00013972,2]
[333282166,1722018649265,-1627.04,0.00013972,2]
[333282167,1722018649274,-500.0,0.00013972,2]
[333282168,1722018649284,-500.0,0.00013972,2]
[333282169,1722018649294,-500.0,0.00013972,2]
[333282170,1722018649303,-500.0,0.00013972,2]
[333282171,1722018649317,-500.0,0.00013972,2]
[333282172,1722018649328,-983.07,0.00013972,2]
[333282173,1722018649338,-500.0,0.00013972,2]
[333282174,1722018649348,-797.01,0.00013972,2]
[333282175,1722018649358,-500.0,0.00013972,2]
[333282176,1722018649368,-500.0,0.00013972,2]
[333282177,1722018649379,-500.0,0.00013972,2]
[333282178,1722018649389,-4761.86,0.00013972,2]
[333282179,1722018649400,-500.0,0.00013972,2]
[333282180,1722018649411,-500.0,0.00013972,2]
[333282181,1722018649421,-1306.28,0.00013972,2]
[333282182,1722018649431,-500.0,0.00013972,2]
[333282183,1722018649440,-500.0,0.00013972,2]
[333282184,1722018649450,-500.0,0.00013972,2]
[333282185,1722018649460,-500.0,0.00013972,2]
[333282186,1722018649470,-500.0,0.00013972,2]
[333282187,1722018649480,-151.0,0.00013972,2]
[333282188,1722018649491,-500.0,0.00013972,2]
[333282189,1722018649502,-969.19,0.00013972,2]
[333282190,1722018649512,-500.0,0.00013972,2]
[333282191,1722018649523,-500.0,0.00013972,2]
[333282192,1722018649534,-825.44,0.00013972,2]
[333282193,1722018649545,-508.15,0.00013972,2]
[333282194,1722018649556,-500.0,0.00013972,2]
[333282195,1722018649568,-500.0,0.00013972,2]
[333282196,1722018649579,-500.0,0.00013972,2]
[333282197,1722018649590,-500.0,0.00013972,2]
[333282198,1722018649601,-767.58,0.00013972,2]
[333282199,1722018649612,-500.0,0.00013972,2]
[333282200,1722018649622,-151.0,0.00013972,2]
[333282201,1722018649633,-500.0,0.00013972,2]
[333282202,1722018649645,-500.0,0.00013972,2]
[333282203,1722018649656,-500.0,0.00013972,2]
[333282204,1722018649667,-151.0,0.00013972,2]
[333282205,1722018649677,-500.0,0.00013972,2]
[333282206,1722018649688,-726.29,0.00013972,2]
[333282207,1722018649698,-500.0,0.00013972,2]
[333282208,1722018649708,-868.81,0.00013972,2]
[333282209,1722018649720,-500.0,0.00013972,2]
[333282210,1722018649731,-618.32,0.00013972,2]
[333282211,1722018649741,-500.0,0.00013972,2]
[333282212,1722018649752,-151.0,0.00013972,2]
[333282213,1722018649763,-500.0,0.00013972,2]
[333282214,1722018649773,-1921.95,0.00013972,2]
[333282215,1722018649783,-500.0,0.00013972,2]
[333282216,1722018649794,-503.92551539,0.00013972,2]
[333282217,1722018649805,-500.0,0.00013972,2]
[333282218,1722018649816,-334.320932,0.00013972,2]
[333282219,1722018649826,-5389.54,0.00013972,2]
[333282220,1722018649837,-500.0,0.00013972,2]
[333282221,1722018649847,-500.0,0.00013972,2]
[333282222,1722018649858,-500.0,0.00013972,2]